Workbook

Sheet Données
A1: Clef | B1: Mois | C1: Année | D1: Date | E1: Région | F1: Responsable | G1: Code produit | H1: Description du produit | I1: Ventes (€) | J1: Ventes (unit.)
A2: 1 | B2: 1 | C2: 2014 | D2: 2014-01-01 | E2: Région Nord | F2: M. Martin | G2: PB | H2: Product B | I2: 300 | J2: 157
A3: 6 | B3: 1 | C3: 2014 | D3: 2014-01-01 | E3: Région Nord | F3: M. Martin | G3: PB | H3: Product B | I3: 738.15 | J3: 37
A4: 7 | B4: 1 | C4: 2014 | D4: 2014-01-01 | E4: Région Centre | F4: M. Dupont | G4: PB | H4: Product B | I4: 738.15 | J4: 37
A5: 8 | B5: 1 | C5: 2014 | D5: 2014-01-01 | E5: Région Nord | F5: M. Martin | G5: PC | H5: Product C | I5: 776.1 | J5: 78
A6: 9 | B6: 1 | C6: 2014 | D6: 2014-01-01 | E6: Région Ouest | F6: M. Deschamps | G6: PC | H6: Product C | I6: 1213.9 | J6: 122
A7: 10 | B7: 1 | C7: 2014 | D7: 2014-01-01 | E7: Région Centre | F7: M. Dupont | G7: PC | H7: Product C | I7: 955.2 | J7: 96
A8: 11 | B8: 1 | C8: 2014 | D8: 2014-01-01 | E8: Région Est | F8: M. Dubois | G8: PC | H8: Product C | I8: 1273.6 | J8: 128
A9: 12 | B9: 1 | C9: 2014 | D9: 2014-01-01 | E9: Région Centre | F9: M. Dupont | G9: PC | H9: Product C | I9: 547.25 | J9: 55
A10: 13 | B10: 1 | C10: 2014 | D10: 2014-01-01 | E10: Région Nord | F10: M. Martin | G10: PC | H10: Product C | I10: 218.9 | J10: 22
A11: 14 | B11: 1 | C11: 2014 | D11: 2014-01-01 | E11: Région Centre | F11: M. Dupont | G11: PC | H11: Product C | I11: 199 | J11: 20
A12: 15 | B12: 1 | C12: 2014 | D12: 2014-01-01 | E12: Région Nord | F12: M. Martin | G12: PA | H12: Product A | I12: 0 | J12: 0
A13: 16 | B13: 1 | C13: 2014 | D13: 2014-01-01 | E13: Région Ouest | F13: M. DesChamps | G13: PA | H13: Product A | I13: 0 | J13: 0
A14: 17 | B14: 1 | C14: 2014 | D14: 2014-01-01 | E14: Région Centre | F14: M. Dupont | G14: PA | H14: Product A | I14: 0 | J14: 0
A15: 18 | B15: 1 | C15: 2014 | D15: 2014-01-01 | E15: Région Est | F15: M. Dubois | G15: PA | H15: Product A | I15: 0 | J15: 0
A16: 19 | B16: 1 | C16: 2014 | D16: 2014-01-01 | E16: Région Centre | F16: M. Dupont | G16: PA | H16: Product A | I16: 0 | J16: 0
A17: 20 | B17: 1 | C17: 2014 | D17: 2014-01-01 | E17: Région Nord | F17: M. Martin | G17: PA | H17: Product A | I17: 0 | J17: 0
A18: 21 | B18: 1 | C18: 2014 | D18: 2014-01-01 | E18: Région Centre | F18: M. Dupont | G18: PA | H18: Product A | I18: 0 | J18: 0
A19: 22 | B19: 2 | C19: 2014 | D19: 2014-02-01 | E19: Région Nord | F19: M. Martin | G19: PB | H19: Product B | I19: 3531.15 | J19: 177
A20: 23 | B20: 2 | C20: 2014 | D20: 2014-02-01 | E20: Région Ouest | F20: M. DesChamps | G20: PB | H20: Product B | I20: 5067.3 | J20: 254
A21: 24 | B21: 2 | C21: 2014 | D21: 2014-02-01 | E21: Région Centre | F21: M. Dupont | G21: PB | H21: Product B | I21: 4468.8 | J21: 224
A22: 25 | B22: 2 | C22: 2014 | D22: 2014-02-01 | E22: Région Est | F22: M. Dubois | G22: PB | H22: Product B | I22: 5386.5 | J22: 270
A23: 26 | B23: 2 | C23: 2014 | D23: 2014-02-01 | E23: Région Centre | F23: M. Dupont | G23: PB | H23: Product B | I23: 2174.55 | J23: 109
A24: 27 | B24: 2 | C24: 2014 | D24: 2014-02-01 | E24: Région Nord | F24: M. Martin | G24: PB | H24: Product B | I24: 857.85 | J24: 43
A25: 28 | B25: 2 | C25: 2014 | D25: 2014-02-01 | E25: Région Centre | F25: M. Dupont | G25: PB | H25: Product B | I25: 857.85 | J25: 43
A26: 29 | B26: 2 | C26: 2014 | D26: 2014-02-01 | E26: Région Nord | F26: M. Martin | G26: PC | H26: Product C | I26: 786.05 | J26: 79
A27: 30 | B27: 2 | C27: 2014 | D27: 2014-02-01 | E27: Région Ouest | F27: M. DesChamps | G27: PC | H27: Product C | I27: 1094.5 | J27: 110
A28: 31 | B28: 2 | C28: 2014 | D28: 2014-02-01 | E28: Région Centre | F28: M. Dupont | G28: PC | H28: Product C | I28: 1074.6 | J28: 108
A29: 32 | B29: 2 | C29: 2014 | D29: 2014-02-01 | E29: Région Est | F29: M. Dubois | G29: PC | H29: Product C | I29: 1452.7 | J29: 146
A30: 33 | B30: 2 | C30: 2014 | D30: 2014-02-01 | E30: Région Centre | F30: M. Dupont | G30: PC | H30: Product C | I30: 597 | J30: 60
A31: 34 | B31: 2 | C31: 2014 | D31: 2014-02-01 | E31: Région Nord | F31: M. Martin | G31: PC | H31: Product C | I31: 218.9 | J31: 22
A32: 35 | B32: 2 | C32: 2014 | D32: 2014-02-01 | E32: Région Centre | F32: M. Dupont | G32: PC | H32: Product C | I32: 238.8 | J32: 24
A33: 36 | B33: 2 | C33: 2014 | D33: 2014-02-01 | E33: Région Nord | F33: M. Martin | G33: PA | H33: Product A | I33: 0 | J33: 0
A34: 37 | B34: 2 | C34: 2014 | D34: 2014-02-01 | E34: Région Ouest | F34: M. DesChamps | G34: PA | H34: Product A | I34: 0 | J34: 0
A35: 38 | B35: 2 | C35: 2014 | D35: 2014-02-01 | E35: Région Centre | F35: M. Dupont | G35: PA | H35: Product A | I35: 0 | J35: 0
A36: 39 | B36: 2 | C36: 2014 | D36: 2014-02-01 | E36: Région Est | F36: M. Dubois | G36: PA | H36: Product A | I36: 0 | J36: 0
A37: 40 | B37: 2 | C37: 2014 | D37: 2014-02-01 | E37: Région Centre | F37: M. Dupont | G37: PA | H37: Product A | I37: 0 | J37: 0
A38: 41 | B38: 2 | C38: 2014 | D38: 2014-02-01 | E38: Région Nord | F38: M. Martin | G38: PA | H38: Product A | I38: 0 | J38: 0
A39: 42 | B39: 2 | C39: 2014 | D39: 2014-02-01 | E39: Région Centre | F39: M. Dupont | G39: PA | H39: Product A | I39: 0 | J39: 0
A40: 43 | B40: 3 | C40: 2014 | D40: 2014-03-01 | E40: Région Nord | F40: M. Martin | G40: PB | H40: Product B | I40: 3072.3 | J40: 154
A41: 44 | B41: 3 | C41: 2014 | D41: 2014-03-01 | E41: Région Ouest | F41: M. DesChamps | G41: PB | H41: Product B | I41: 3970.05 | J41: 199
A42: 45 | B42: 3 | C42: 2014 | D42: 2014-03-01 | E42: Région Centre | F42: M. Dupont | G42: PB | H42: Product B | I42: 3870.3 | J42: 194
A43: 46 | B43: 3 | C43: 2014 | D43: 2014-03-01 | E43: Région Est | F43: M. Dubois | G43: PB | H43: Product B | I43: 4468.8 | J43: 224
A44: 47 | B44: 3 | C44: 2014 | D44: 2014-03-01 | E44: Région Centre | F44: M. Dupont | G44: PB | H44: Product B | I44: 1715.7 | J44: 86
A45: 48 | B45: 3 | C45: 2014 | D45: 2014-03-01 | E45: Région Nord | F45: M. Martin | G45: PB | H45: Product B | I45: 678.3 | J45: 34
A46: 49 | B46: 3 | C46: 2014 | D46: 2014-03-01 | E46: Région Centre | F46: M. Dupont | G46: PB | H46: Product B | I46: 718.2 | J46: 36
A47: 50 | B47: 3 | C47: 2014 | D47: 2014-03-01 | E47: Région Nord | F47: M. Martin | G47: PC | H47: Product C | I47: 616.9 | J47: 62
A48: 51 | B48: 3 | C48: 2014 | D48: 2014-03-01 | E48: Région Ouest | F48: M. DesChamps | G48: PC | H48: Product C | I48: 875.6 | J48: 88
A49: 52 | B49: 3 | C49: 2014 | D49: 2014-03-01 | E49: Région Centre | F49: M. Dupont | G49: PC | H49: Product C | I49: 796 | J49: 80
A50: 53 | B50: 3 | C50: 2014 | D50: 2014-03-01 | E50: Région Est | F50: M. Dubois | G50: PC | H50: Product C | I50: 1014.9 | J50: 102
A51: 54 | B51: 3 | C51: 2014 | D51: 2014-03-01 | E51: Région Centre | F51: M. Dupont | G51: PC | H51: Product C | I51: 398 | J51: 40
A52: 55 | B52: 3 | C52: 2014 | D52: 2014-03-01 | E52: Région Nord | F52: M. Martin | G52: PC | H52: Product C | I52: 169.15 | J52: 17
A53: 56 | B53: 3 | C53: 2014 | D53: 2014-03-01 | E53: Région Centre | F53: M. Dupont | G53: PC | H53: Product C | I53: 159.2 | J53: 16
A54: 57 | B54: 3 | C54: 2014 | D54: 2014-03-01 | E54: Région Nord | F54: M. Martin | G54: PA | H54: Product A | I54: 0 | J54: 0
A55: 58 | B55: 3 | C55: 2014 | D55: 2014-03-01 | E55: Région Ouest | F55: M. DesChamps | G55: PA | H55: Product A | I55: 0 | J55: 0
A56: 59 | B56: 3 | C56: 2014 | D56: 2014-03-01 | E56: Région Centre | F56: M. Dupont | G56: PA | H56: Product A | I56: 0 | J56: 0
A57: 60 | B57: 3 | C57: 2014 | D57: 2014-03-01 | E57: Région Est | F57: M. Dubois | G57: PA | H57: Product A | I57: 0 | J57: 0
A58: 61 | B58: 3 | C58: 2014 | D58: 2014-03-01 | E58: Région Centre | F58: M. Dupont | G58: PA | H58: Product A | I58: 0 | J58: 0
A59: 62 | B59: 3 | C59: 2014 | D59: 2014-03-01 | E59: Région Nord | F59: M. Martin | G59: PA | H59: Product A | I59: 0 | J59: 0
A60: 63 | B60: 3 | C60: 2014 | D60: 2014-03-01 | E60: Région Centre | F60: M. Dupont | G60: PA | H60: Product A | I60: 0 | J60: 0
A61: 64 | B61: 4 | C61: 2014 | D61: 2014-04-01 | E61: Région Nord | F61: M. Martin | G61: PB | H61: Product B | I61: 2613.45 | J61: 131
A62: 65 | B62: 4 | C62: 2014 | D62: 2014-04-01 | E62: Région Ouest | F62: M. DesChamps | G62: PB | H62: Product B | I62: 4289.25 | J62: 215
A63: 66 | B63: 4 | C63: 2014 | D63: 2014-04-01 | E63: Région Centre | F63: M. Dupont | G63: PB | H63: Product B | I63: 3910.2 | J63: 196
A64: 67 | B64: 4 | C64: 2014 | D64: 2014-04-01 | E64: Région Est | F64: M. Dubois | G64: PB | H64: Product B | I64: 4369.05 | J64: 219
A65: 68 | B65: 4 | C65: 2014 | D65: 41730 | E65: Région Centre | F65: M. Dupont | G65: PB | H65: Product B | I65: 1755.6 | J65: 88
A66: 69 | B66: 4 | C66: 2014 | D66: 41730 | E66: Région Nord | F66: M. Martin | G66: PB | H66: Product B | I66: 758.1 | J66: 38
A67: 70 | B67: 4 | C67: 2014 | D67: 41730 | E67: Région Centre | F67: M. Dupont | G67: PB | H67: Product B | I67: 698.25 | J67: 35
A68: 71 | B68: 4 | C68: 2014 | D68: 41730 | E68: Région Nord | F68: M. Martin | G68: PC | H68: Product C | I68: 517.4 | J68: 52
A69: 72 | B69: 4 | C69: 2014 | D69: 41730 | E69: Région Ouest | F69: M. DesChamps | G69: PC | H69: Product C | I69: 815.9 | J69: 82
A70: 73 | B70: 4 | C70: 2014 | D70: 41730 | E70: Région Centre | F70: M. Dupont | G70: PC | H70: Product C | I70: 776.1 | J70: 78
A71: 74 | B71: 4 | C71: 2014 | D71: 41730 | E71: Région Est | F71: M. Dubois | G71: PC | H71: Product C | I71: 955.2 | J71: 96
A72: 75 | B72: 4 | C72: 2014 | D72: 41730 | E72: Région Centre | F72: M. Dupont | G72: PC | H72: Product C | I72: 328.35 | J72: 33
A73: 76 | B73: 4 | C73: 2014 | D73: 41730 | E73: Région Nord | F73: M. Martin | G73: PC | H73: Product C | I73: 129.35 | J73: 13
A74: 77 | B74: 4 | C74: 2014 | D74: 41730 | E74: Région Centre | F74: M. Dupont | G74: PC | H74: Product C | I74: 129.35 | J74: 13
A75: 78 | B75: 4 | C75: 2014 | D75: 41730 | E75: Région Nord | F75: M. Martin | G75: PA | H75: Product A | I75: 79.8 | J75: 4
A76: 79 | B76: 4 | C76: 2014 | D76: 41730 | E76: Région Ouest | F76: M. DesChamps | G76: PA | H76: Product A | I76: 99.75 | J76: 5
A77: 80 | B77: 4 | C77: 2014 | D77: 41730 | E77: Région Centre | F77: M. Dupont | G77: PA | H77: Product A | I77: 119.7 | J77: 6
A78: 81 | B78: 4 | C78: 2014 | D78: 41730 | E78: Région Est | F78: M. Dubois | G78: PA | H78: Product A | I78: 159.6 | J78: 8
A79: 82 | B79: 4 | C79: 2014 | D79: 41730 | E79: Région Centre | F79: M. Dupont | G79: PA | H79: Product A | I79: 59.85 | J79: 3
A80: 83 | B80: 4 | C80: 2014 | D80: 41730 | E80: Région Nord | F80: M. Martin | G80: PA | H80: Product A | I80: 19.95 | J80: 1
A81: 84 | B81: 4 | C81: 2014 | D81: 41730 | E81: Région Centre | F81: M. Dupont | G81: PA | H81: Product A | I81: 19.95 | J81: 1
A82: 85 | B82: 5 | C82: 2014 | D82: 41760 | E82: Région Nord | F82: M. Martin | G82: PB | H82: Product B | I82: 3511.2 | J82: 176
A83: 86 | B83: 5 | C83: 2014 | D83: 41760 | E83: Région Ouest | F83: M. DesChamps | G83: PB | H83: Product B | I83: 5306.7 | J83: 266
A84: 87 | B84: 5 | C84: 2014 | D84: 41760 | E84: Région Centre | F84: M. Dupont | G84: PB | H84: Product B | I84: 5107.2 | J84: 256
A85: 88 | B85: 5 | C85: 2014 | D85: 41760 | E85: Région Est | F85: M. Dubois | G85: PB | H85: Product B | I85: 5905.2 | J85: 296
A86: 89 | B86: 5 | C86: 2014 | D86: 41760 | E86: Région Centre | F86: M. Dupont | G86: PB | H86: Product B | I86: 2573.55 | J86: 129
A87: 90 | B87: 5 | C87: 2014 | D87: 41760 | E87: Région Nord | F87: M. Martin | G87: PB | H87: Product B | I87: 1017.45 | J87: 51
A88: 91 | B88: 5 | C88: 2014 | D88: 41760 | E88: Région Centre | F88: M. Dupont | G88: PB | H88: Product B | I88: 917.7 | J88: 46
A89: 92 | B89: 5 | C89: 2014 | D89: 41760 | E89: Région Nord | F89: M. Martin | G89: PC | H89: Product C | I89: 756.2 | J89: 76
A90: 93 | B90: 5 | C90: 2014 | D90: 41760 | E90: Région Ouest | F90: M. DesChamps | G90: PC | H90: Product C | I90: 985.05 | J90: 99
A91: 94 | B91: 5 | C91: 2014 | D91: 41760 | E91: Région Centre | F91: M. Dupont | G91: PC | H91: Product C | I91: 1034.8 | J91: 104
A92: 95 | B92: 5 | C92: 2014 | D92: 41760 | E92: Région Est | F92: M. Dubois | G92: PC | H92: Product C | I92: 1253.7 | J92: 126
A93: 96 | B93: 5 | C93: 2014 | D93: 41760 | E93: Région Centre | F93: M. Dupont | G93: PC | H93: Product C | I93: 527.35 | J93: 53
A94: 97 | B94: 5 | C94: 2014 | D94: 41760 | E94: Région Nord | F94: M. Martin | G94: PC | H94: Product C | I94: 189.05 | J94: 19
A95: 98 | B95: 5 | C95: 2014 | D95: 41760 | E95: Région Centre | F95: M. Dupont | G95: PC | H95: Product C | I95: 208.95 | J95: 21
A96: 99 | B96: 5 | C96: 2014 | D96: 41760 | E96: Région Nord | F96: M. Martin | G96: PA | H96: Product A | I96: 99.75 | J96: 5
A97: 100 | B97: 5 | C97: 2014 | D97: 41760 | E97: Région Ouest | F97: M. DesChamps | G97: PA | H97: Product A | I97: 139.65 | J97: 7
A98: 101 | B98: 5 | C98: 2014 | D98: 41760 | E98: Région Centre | F98: M. Dupont | G98: PA | H98: Product A | I98: 119.7 | J98: 6
A99: 102 | B99: 5 | C99: 2014 | D99: 41760 | E99: Région Est | F99: M. Dubois | G99: PA | H99: Product A | I99: 179.55 | J99: 9
A100: 103 | B100: 5 | C100: 2014 | D100: 41760 | E100: Région Centre | F100: M. Dupont | G100: PA | H100: Product A | I100: 59.85 | J100: 3
A101: 104 | B101: 5 | C101: 2014 | D101: 41760 | E101: Région Nord | F101: M. Martin | G101: PA | H101: Product A | I101: 19.95 | J101: 1
A102: 105 | B102: 5 | C102: 2014 | D102: 41760 | E102: Région Centre | F102: M. Dupont | G102: PA | H102: Product A | I102: 19.95 | J102: 1
A103: 106 | B103: 6 | C103: 2014 | D103: 41791 | E103: Région Nord | F103: M. Martin | G103: PB | H103: Product B | I103: 6743.1 | J103: 338
A104: 107 | B104: 6 | C104: 2014 | D104: 41791 | E104: Région Ouest | F104: M. DesChamps | G104: PB | H104: Product B | I104: 10234.35 | J104: 513
A105: 108 | B105: 6 | C105: 2014 | D105: 41791 | E105: Région Centre | F105: M. Dupont | G105: PB | H105: Product B | I105: 8698.2 | J105: 436
A106: 109 | B106: 6 | C106: 2014 | D106: 41791 | E106: Région Est | F106: M. Dubois | G106: PB | H106: Product B | I106: 10194.45 | J106: 511
A107: 110 | B107: 6 | C107: 2014 | D107: 41791 | E107: Région Centre | F107: M. Dupont | G107: PB | H107: Product B | I107: 4249.35 | J107: 213
A108: 111 | B108: 6 | C108: 2014 | D108: 41791 | E108: Région Nord | F108: M. Martin | G108: PB | H108: Product B | I108: 1775.55 | J108: 89
A109: 112 | B109: 6 | C109: 2014 | D109: 41791 | E109: Région Centre | F109: M. Dupont | G109: PB | H109: Product B | I109: 1795.5 | J109: 90
A110: 113 | B110: 6 | C110: 2014 | D110: 41791 | E110: Région Nord | F110: M. Martin | G110: PC | H110: Product C | I110: 1323.35 | J110: 133
A111: 114 | B111: 6 | C111: 2014 | D111: 41791 | E111: Région Ouest | F111: M. DesChamps | G111: PC | H111: Product C | I111: 1681.55 | J111: 169
A112: 115 | B112: 6 | C112: 2014 | D112: 41791 | E112: Région Centre | F112: M. Dupont | G112: PC | H112: Product C | I112: 1482.55 | J112: 149
A113: 116 | B113: 6 | C113: 2014 | D113: 41791 | E113: Région Est | F113: M. Dubois | G113: PC | H113: Product C | I113: 2109.4 | J113: 212
A114: 117 | B114: 6 | C114: 2014 | D114: 41791 | E114: Région Centre | F114: M. Dupont | G114: PC | H114: Product C | I114: 716.4 | J114: 72
A115: 118 | B115: 6 | C115: 2014 | D115: 41791 | E115: Région Nord | F115: M. Martin | G115: PC | H115: Product C | I115: 288.55 | J115: 29
A116: 119 | B116: 6 | C116: 2014 | D116: 41791 | E116: Région Centre | F116: M. Dupont | G116: PC | H116: Product C | I116: 328.35 | J116: 33
A117: 120 | B117: 6 | C117: 2014 | D117: 41791 | E117: Région Nord | F117: M. Martin | G117: PA | H117: Product A | I117: 179.55 | J117: 9
A118: 121 | B118: 6 | C118: 2014 | D118: 41791 | E118: Région Ouest | F118: M. DesChamps | G118: PA | H118: Product A | I118: 239.4 | J118: 12
A119: 122 | B119: 6 | C119: 2014 | D119: 41791 | E119: Région Centre | F119: M. Dupont | G119: PA | H119: Product A | I119: 239.4 | J119: 12
A120: 123 | B120: 6 | C120: 2014 | D120: 41791 | E120: Région Est | F120: M. Dubois | G120: PA | H120: Product A | I120: 319.2 | J120: 16
A121: 124 | B121: 6 | C121: 2014 | D121: 41791 | E121: Région Centre | F121: M. Dupont | G121: PA | H121: Product A | I121: 119.7 | J121: 6
A122: 125 | B122: 6 | C122: 2014 | D122: 41791 | E122: Région Nord | F122: M. Martin | G122: PA | H122: Product A | I122: 39.9 | J122: 2
A123: 126 | B123: 6 | C123: 2014 | D123: 41791 | E123: Région Centre | F123: M. Dupont | G123: PA | H123: Product A | I123: 39.9 | J123: 2
A124: 127 | B124: 7 | C124: 2014 | D124: 41821 | E124: Région Nord | F124: M. Martin | G124: PB | H124: Product B | I124: 7680.75 | J124: 385
A125: 128 | B125: 7 | C125: 2014 | D125: 41821 | E125: Région Ouest | F125: M. DesChamps | G125: PB | H125: Product B | I125: 10693.2 | J125: 536
A126: 129 | B126: 7 | C126: 2014 | D126: 41821 | E126: Région Centre | F126: M. Dupont | G126: PB | H126: Product B | I126: 9296.7 | J126: 466
A127: 130 | B127: 7 | C127: 2014 | D127: 41821 | E127: Région Est | F127: M. Dubois | G127: PB | H127: Product B | I127: 13286.7 | J127: 666
A128: 131 | B128: 7 | C128: 2014 | D128: 41821 | E128: Région Centre | F128: M. Dupont | G128: PB | H128: Product B | I128: 4907.7 | J128: 246
A129: 132 | B129: 7 | C129: 2014 | D129: 41821 | E129: Région Nord | F129: M. Martin | G129: PB | H129: Product B | I129: 2154.6 | J129: 108
A130: 133 | B130: 7 | C130: 2014 | D130: 41821 | E130: Région Centre | F130: M. Dupont | G130: PB | H130: Product B | I130: 1995 | J130: 100
A131: 134 | B131: 7 | C131: 2014 | D131: 41821 | E131: Région Nord | F131: M. Martin | G131: PC | H131: Product C | I131: 1492.5 | J131: 150
A132: 135 | B132: 7 | C132: 2014 | D132: 41821 | E132: Région Ouest | F132: M. DesChamps | G132: PC | H132: Product C | I132: 1950.2 | J132: 196
A133: 136 | B133: 7 | C133: 2014 | D133: 41821 | E133: Région Centre | F133: M. Dupont | G133: PC | H133: Product C | I133: 1860.65 | J133: 187
A134: 137 | B134: 7 | C134: 2014 | D134: 41821 | E134: Région Est | F134: M. Dubois | G134: PC | H134: Product C | I134: 2208.9 | J134: 222
A135: 138 | B135: 7 | C135: 2014 | D135: 41821 | E135: Région Centre | F135: M. Dupont | G135: PC | H135: Product C | I135: 975.1 | J135: 98
A136: 139 | B136: 7 | C136: 2014 | D136: 41821 | E136: Région Nord | F136: M. Martin | G136: PC | H136: Product C | I136: 378.1 | J136: 38
A137: 140 | B137: 7 | C137: 2014 | D137: 41821 | E137: Région Centre | F137: M. Dupont | G137: PC | H137: Product C | I137: 358.2 | J137: 36
A138: 141 | B138: 7 | C138: 2014 | D138: 41821 | E138: Région Nord | F138: M. Martin | G138: PA | H138: Product A | I138: 299.25 | J138: 15
A139: 142 | B139: 7 | C139: 2014 | D139: 41821 | E139: Région Ouest | F139: M. DesChamps | G139: PA | H139: Product A | I139: 339.15 | J139: 17
A140: 143 | B140: 7 | C140: 2014 | D140: 41821 | E140: Région Centre | F140: M. Dupont | G140: PA | H140: Product A | I140: 319.2 | J140: 16
A141: 144 | B141: 7 | C141: 2014 | D141: 41821 | E141: Région Est | F141: M. Dubois | G141: PA | H141: Product A | I141: 478.8 | J141: 24
A142: 145 | B142: 7 | C142: 2014 | D142: 41821 | E142: Région Centre | F142: M. Dupont | G142: PA | H142: Product A | I142: 159.6 | J142: 8
A143: 146 | B143: 7 | C143: 2014 | D143: 41821 | E143: Région Nord | F143: M. Martin | G143: PA | H143: Product A | I143: 59.85 | J143: 3
A144: 147 | B144: 7 | C144: 2014 | D144: 41821 | E144: Région Centre | F144: M. Dupont | G144: PA | H144: Product A | I144: 59.85 | J144: 3
A145: 148 | B145: 8 | C145: 2014 | D145: 41852 | E145: Région Nord | F145: M. Martin | G145: PB | H145: Product B | I145: 9177 | J145: 460
A146: 149 | B146: 8 | C146: 2014 | D146: 41852 | E146: Région Ouest | F146: M. DesChamps | G146: PB | H146: Product B | I146: 13685.7 | J146: 686
A147: 150 | B147: 8 | C147: 2014 | D147: 41852 | E147: Région Centre | F147: M. Dupont | G147: PB | H147: Product B | I147: 13027.35 | J147: 653
A148: 151 | B148: 8 | C148: 2014 | D148: 41852 | E148: Région Est | F148: M. Dubois | G148: PB | H148: Product B | I148: 14782.95 | J148: 741
A149: 152 | B149: 8 | C149: 2014 | D149: 41852 | E149: Région Centre | F149: M. Dupont | G149: PB | H149: Product B | I149: 5805.45 | J149: 291
A150: 153 | B150: 8 | C150: 2014 | D150: 41852 | E150: Région Nord | F150: M. Martin | G150: PB | H150: Product B | I150: 2573.55 | J150: 129
A151: 154 | B151: 8 | C151: 2014 | D151: 41852 | E151: Région Centre | F151: M. Dupont | G151: PB | H151: Product B | I151: 2174.55 | J151: 109
A152: 155 | B152: 8 | C152: 2014 | D152: 41852 | E152: Région Nord | F152: M. Martin | G152: PC | H152: Product C | I152: 1572.1 | J152: 158
A153: 156 | B153: 8 | C153: 2014 | D153: 41852 | E153: Région Ouest | F153: M. DesChamps | G153: PC | H153: Product C | I153: 2039.75 | J153: 205
A154: 157 | B154: 8 | C154: 2014 | D154: 41852 | E154: Région Centre | F154: M. Dupont | G154: PC | H154: Product C | I154: 1910.4 | J154: 192
A155: 158 | B155: 8 | C155: 2014 | D155: 41852 | E155: Région Est | F155: M. Dubois | G155: PC | H155: Product C | I155: 2198.95 | J155: 221
A156: 159 | B156: 8 | C156: 2014 | D156: 41852 | E156: Région Centre | F156: M. Dupont | G156: PC | H156: Product C | I156: 945.25 | J156: 95
A157: 160 | B157: 8 | C157: 2014 | D157: 41852 | E157: Région Nord | F157: M. Martin | G157: PC | H157: Product C | I157: 368.15 | J157: 37
A158: 161 | B158: 8 | C158: 2014 | D158: 41852 | E158: Région Centre | F158: M. Dupont | G158: PC | H158: Product C | I158: 368.15 | J158: 37
A159: 162 | B159: 8 | C159: 2014 | D159: 41852 | E159: Région Nord | F159: M. Martin | G159: PA | H159: Product A | I159: 379.05 | J159: 19
A160: 163 | B160: 8 | C160: 2014 | D160: 41852 | E160: Région Ouest | F160: M. DesChamps | G160: PA | H160: Product A | I160: 498.75 | J160: 25
A161: 164 | B161: 8 | C161: 2014 | D161: 41852 | E161: Région Centre | F161: M. Dupont | G161: PA | H161: Product A | I161: 399 | J161: 20
A162: 165 | B162: 8 | C162: 2014 | D162: 41852 | E162: Région Est | F162: M. Dubois | G162: PA | H162: Product A | I162: 578.55 | J162: 29
A163: 166 | B163: 8 | C163: 2014 | D163: 41852 | E163: Région Centre | F163: M. Dupont | G163: PA | H163: Product A | I163: 239.4 | J163: 12
A164: 167 | B164: 8 | C164: 2014 | D164: 41852 | E164: Région Nord | F164: M. Martin | G164: PA | H164: Product A | I164: 79.8 | J164: 4
A165: 168 | B165: 8 | C165: 2014 | D165: 41852 | E165: Région Centre | F165: M. Dupont | G165: PA | H165: Product A | I165: 79.8 | J165: 4
A166: 169 | B166: 9 | C166: 2014 | D166: 41883 | E166: Région Nord | F166: M. Martin | G166: PB | H166: Product B | I166: 11730.6 | J166: 588
A167: 170 | B167: 9 | C167: 2014 | D167: 41883 | E167: Région Ouest | F167: M. DesChamps | G167: PB | H167: Product B | I167: 17935.05 | J167: 899
A168: 171 | B168: 9 | C168: 2014 | D168: 41883 | E168: Région Centre | F168: M. Dupont | G168: PB | H168: Product B | I168: 14064.75 | J168: 705
A169: 172 | B169: 9 | C169: 2014 | D169: 41883 | E169: Région Est | F169: M. Dubois | G169: PB | H169: Product B | I169: 18274.2 | J169: 916
A170: 173 | B170: 9 | C170: 2014 | D170: 41883 | E170: Région Centre | F170: M. Dupont | G170: PB | H170: Product B | I170: 7999.95 | J170: 401
A171: 174 | B171: 9 | C171: 2014 | D171: 41883 | E171: Région Nord | F171: M. Martin | G171: PB | H171: Product B | I171: 3192 | J171: 160
A172: 175 | B172: 9 | C172: 2014 | D172: 41883 | E172: Région Centre | F172: M. Dupont | G172: PB | H172: Product B | I172: 2812.95 | J172: 141
A173: 176 | B173: 9 | C173: 2014 | D173: 41883 | E173: Région Nord | F173: M. Martin | G173: PC | H173: Product C | I173: 1562.15 | J173: 157
A174: 177 | B174: 9 | C174: 2014 | D174: 41883 | E174: Région Ouest | F174: M. DesChamps | G174: PC | H174: Product C | I174: 2338.25 | J174: 235
A175: 178 | B175: 9 | C175: 2014 | D175: 41883 | E175: Région Centre | F175: M. Dupont | G175: PC | H175: Product C | I175: 2019.85 | J175: 203
A176: 179 | B176: 9 | C176: 2014 | D176: 41883 | E176: Région Est | F176: M. Dubois | G176: PC | H176: Product C | I176: 2875.55 | J176: 289
A177: 180 | B177: 9 | C177: 2014 | D177: 41883 | E177: Région Centre | F177: M. Dupont | G177: PC | H177: Product C | I177: 935.3 | J177: 94
A178: 181 | B178: 9 | C178: 2014 | D178: 41883 | E178: Région Nord | F178: M. Martin | G178: PC | H178: Product C | I178: 427.85 | J178: 43
A179: 182 | B179: 9 | C179: 2014 | D179: 41883 | E179: Région Centre | F179: M. Dupont | G179: PC | H179: Product C | I179: 447.75 | J179: 45
A180: 183 | B180: 9 | C180: 2014 | D180: 41883 | E180: Région Nord | F180: M. Martin | G180: PA | H180: Product A | I180: 438.9 | J180: 22
A181: 184 | B181: 9 | C181: 2014 | D181: 41883 | E181: Région Ouest | F181: M. DesChamps | G181: PA | H181: Product A | I181: 558.6 | J181: 28
A182: 185 | B182: 9 | C182: 2014 | D182: 41883 | E182: Région Centre | F182: M. Dupont | G182: PA | H182: Product A | I182: 518.7 | J182: 26
A183: 186 | B183: 9 | C183: 2014 | D183: 41883 | E183: Région Est | F183: M. Dubois | G183: PA | H183: Product A | I183: 698.25 | J183: 35
A184: 187 | B184: 9 | C184: 2014 | D184: 41883 | E184: Région Centre | F184: M. Dupont | G184: PA | H184: Product A | I184: 259.35 | J184: 13
A185: 188 | B185: 9 | C185: 2014 | D185: 41883 | E185: Région Nord | F185: M. Martin | G185: PA | H185: Product A | I185: 99.75 | J185: 5
A186: 189 | B186: 9 | C186: 2014 | D186: 41883 | E186: Région Centre | F186: M. Dupont | G186: PA | H186: Product A | I186: 99.75 | J186: 5
A187: 190 | B187: 10 | C187: 2014 | D187: 41913 | E187: Région Nord | F187: M. Martin | G187: PB | H187: Product B | I187: 16199.4 | J187: 812
A188: 191 | B188: 10 | C188: 2014 | D188: 41913 | E188: Région Ouest | F188: M. DesChamps | G188: PB | H188: Product B | I188: 25156.95 | J188: 1261
A189: 192 | B189: 10 | C189: 2014 | D189: 41913 | E189: Région Centre | F189: M. Dupont | G189: PB | H189: Product B | I189: 20249.25 | J189: 1015
A190: 193 | B190: 10 | C190: 2014 | D190: 41913 | E190: Région Est | F190: M. Dubois | G190: PB | H190: Product B | I190: 27750.45 | J190: 1391
A191: 194 | B191: 10 | C191: 2014 | D191: 41913 | E191: Région Centre | F191: M. Dupont | G191: PB | H191: Product B | I191: 10553.55 | J191: 529
A192: 195 | B192: 10 | C192: 2014 | D192: 41913 | E192: Région Nord | F192: M. Martin | G192: PB | H192: Product B | I192: 4748.1 | J192: 238
A193: 196 | B193: 10 | C193: 2014 | D193: 41913 | E193: Région Centre | F193: M. Dupont | G193: PB | H193: Product B | I193: 4349.1 | J193: 218
A194: 197 | B194: 10 | C194: 2014 | D194: 41913 | E194: Région Nord | F194: M. Martin | G194: PC | H194: Product C | I194: 2278.55 | J194: 229
A195: 198 | B195: 10 | C195: 2014 | D195: 41913 | E195: Région Ouest | F195: M. DesChamps | G195: PC | H195: Product C | I195: 3422.8 | J195: 344
A196: 199 | B196: 10 | C196: 2014 | D196: 41913 | E196: Région Centre | F196: M. Dupont | G196: PC | H196: Product C | I196: 2646.7 | J196: 266
A197: 200 | B197: 10 | C197: 2014 | D197: 41913 | E197: Région Est | F197: M. Dubois | G197: PC | H197: Product C | I197: 4039.7 | J197: 406
A198: 201 | B198: 10 | C198: 2014 | D198: 41913 | E198: Région Centre | F198: M. Dupont | G198: PC | H198: Product C | I198: 1562.15 | J198: 157
A199: 202 | B199: 10 | C199: 2014 | D199: 41913 | E199: Région Nord | F199: M. Martin | G199: PC | H199: Product C | I199: 587.05 | J199: 59
A200: 203 | B200: 10 | C200: 2014 | D200: 41913 | E200: Région Centre | F200: M. Dupont | G200: PC | H200: Product C | I200: 527.35 | J200: 53
... 198 more rows

Sheet Paramètres & calculs
A3: Choix de la région : | B3: Région Ouest
A5: Choix du produit : | B5: Product A
A7: Choix de l'année : | B7: 2014
B9: Mois :
B10: 1 | C10: 2 | D10: 3 | E10: 4 | F10: 5 | G10: 6 | H10: 7 | I10: 8 | J10: 9 | K10: 10 | L10: 11 | M10: 12
A11: Ventes (€) | B11: =SUMIFS(Tableau1[Ventes (€)],Tableau1[Description du produit],Param_Produits,Tableau1[Région],Param_Region,Tableau1[Année],Param_Annee,Tableau1[Mois],B$10) -> 0 | C11: =SUMIFS(Tableau1[Ventes (€)],Tableau1[Description du produit],Param_Produits,Tableau1[Région],Param_Region,Tableau1[Année],Param_Annee,Tableau1[Mois],C$10) -> 0 | D11: =SUMIFS(Tableau1[Ventes (€)],Tableau1[Description du produit],Param_Produits,Tableau1[Région],Param_Region,Tableau1[Année],Param_Annee,Tableau1[Mois],D$10) -> 0 | E11: =SUMIFS(Tableau1[Ventes (€)],Tableau1[Description du produit],Param_Produits,Tableau1[Région],Param_Region,Tableau1[Année],Param_Annee,Tableau1[Mois],E$10) -> 99.75 | F11: =SUMIFS(Tableau1[Ventes (€)],Tableau1[Description du produit],Param_Produits,Tableau1[Région],Param_Region,Tableau1[Année],Param_Annee,Tableau1[Mois],F$10) -> 139.65 | G11: =SUMIFS(Tableau1[Ventes (€)],Tableau1[Description du produit],Param_Produits,Tableau1[Région],Param_Region,Tableau1[Année],Param_Annee,Tableau1[Mois],G$10) -> 239.4 | H11: =SUMIFS(Tableau1[Ventes (€)],Tableau1[Description du produit],Param_Produits,Tableau1[Région],Param_Region,Tableau1[Année],Param_Annee,Tableau1[Mois],H$10) -> 339.15 | I11: =SUMIFS(Tableau1[Ventes (€)],Tableau1[Description du produit],Param_Produits,Tableau1[Région],Param_Region,Tableau1[Année],Param_Annee,Tableau1[Mois],I$10) -> 498.75 | J11: =SUMIFS(Tableau1[Ventes (€)],Tableau1[Description du produit],Param_Produits,Tableau1[Région],Param_Region,Tableau1[Année],Param_Annee,Tableau1[Mois],J$10) -> 558.6 | K11: =SUMIFS(Tableau1[Ventes (€)],Tableau1[Description du produit],Param_Produits,Tableau1[Région],Param_Region,Tableau1[Année],Param_Annee,Tableau1[Mois],K$10) -> 817.95 | L11: =SUMIFS(Tableau1[Ventes (€)],Tableau1[Description du produit],Param_Produits,Tableau1[Région],Param_Region,Tableau1[Année],Param_Annee,Tableau1[Mois],L$10) -> 997.5 | M11: =SUMIFS(Tableau1[Ventes (€)],Tableau1[Description du produit],Param_Produits,Tableau1[Région],Param_Region,Tableau1[Année],Param_Annee,Tableau1[Mois],M$10) -> 1017.45
A12: Ventes (Unit.) | B12: =SUMIFS(Tableau1[Ventes (unit.)],Tableau1[Description du produit],Param_Produits,Tableau1[Région],Param_Region,Tableau1[Année],Param_Annee,Tableau1[Mois],B$10) -> 0 | C12: =SUMIFS(Tableau1[Ventes (unit.)],Tableau1[Description du produit],Param_Produits,Tableau1[Région],Param_Region,Tableau1[Année],Param_Annee,Tableau1[Mois],C$10) -> 0 | D12: =SUMIFS(Tableau1[Ventes (unit.)],Tableau1[Description du produit],Param_Produits,Tableau1[Région],Param_Region,Tableau1[Année],Param_Annee,Tableau1[Mois],D$10) -> 0 | E12: =SUMIFS(Tableau1[Ventes (unit.)],Tableau1[Description du produit],Param_Produits,Tableau1[Région],Param_Region,Tableau1[Année],Param_Annee,Tableau1[Mois],E$10) -> 5 | F12: =SUMIFS(Tableau1[Ventes (unit.)],Tableau1[Description du produit],Param_Produits,Tableau1[Région],Param_Region,Tableau1[Année],Param_Annee,Tableau1[Mois],F$10) -> 7 | G12: =SUMIFS(Tableau1[Ventes (unit.)],Tableau1[Description du produit],Param_Produits,Tableau1[Région],Param_Region,Tableau1[Année],Param_Annee,Tableau1[Mois],G$10) -> 12 | H12: =SUMIFS(Tableau1[Ventes (unit.)],Tableau1[Description du produit],Param_Produits,Tableau1[Région],Param_Region,Tableau1[Année],Param_Annee,Tableau1[Mois],H$10) -> 17 | I12: =SUMIFS(Tableau1[Ventes (unit.)],Tableau1[Description du produit],Param_Produits,Tableau1[Région],Param_Region,Tableau1[Année],Param_Annee,Tableau1[Mois],I$10) -> 25 | J12: =SUMIFS(Tableau1[Ventes (unit.)],Tableau1[Description du produit],Param_Produits,Tableau1[Région],Param_Region,Tableau1[Année],Param_Annee,Tableau1[Mois],J$10) -> 28 | K12: =SUMIFS(Tableau1[Ventes (unit.)],Tableau1[Description du produit],Param_Produits,Tableau1[Région],Param_Region,Tableau1[Année],Param_Annee,Tableau1[Mois],K$10) -> 41 | L12: =SUMIFS(Tableau1[Ventes (unit.)],Tableau1[Description du produit],Param_Produits,Tableau1[Région],Param_Region,Tableau1[Année],Param_Annee,Tableau1[Mois],L$10) -> 50 | M12: =SUMIFS(Tableau1[Ventes (unit.)],Tableau1[Description du produit],Param_Produits,Tableau1[Région],Param_Region,Tableau1[Année],Param_Annee,Tableau1[Mois],M$10) -> 51
B14: 1 | C14: 2 | D14: 3 | E14: 4 | F14: 5 | G14: 6 | H14: 7 | I14: 8 | J14: 9 | K14: 10 | L14: 11 | M14: 12
A15: Product A | B15: =SUMIFS(Tableau1[Ventes (€)],Tableau1[Description du produit],$A15,Tableau1[Région],Param_Region,Tableau1[Année],Param_Annee,Tableau1[Mois],B$10) -> 0 | C15: =SUMIFS(Tableau1[Ventes (€)],Tableau1[Description du produit],$A15,Tableau1[Région],Param_Region,Tableau1[Année],Param_Annee,Tableau1[Mois],C$10) -> 0 | D15: =SUMIFS(Tableau1[Ventes (€)],Tableau1[Description du produit],$A15,Tableau1[Région],Param_Region,Tableau1[Année],Param_Annee,Tableau1[Mois],D$10) -> 0 | E15: =SUMIFS(Tableau1[Ventes (€)],Tableau1[Description du produit],$A15,Tableau1[Région],Param_Region,Tableau1[Année],Param_Annee,Tableau1[Mois],E$10) -> 99.75 | F15: =SUMIFS(Tableau1[Ventes (€)],Tableau1[Description du produit],$A15,Tableau1[Région],Param_Region,Tableau1[Année],Param_Annee,Tableau1[Mois],F$10) -> 139.65 | G15: =SUMIFS(Tableau1[Ventes (€)],Tableau1[Description du produit],$A15,Tableau1[Région],Param_Region,Tableau1[Année],Param_Annee,Tableau1[Mois],G$10) -> 239.4 | H15: =SUMIFS(Tableau1[Ventes (€)],Tableau1[Description du produit],$A15,Tableau1[Région],Param_Region,Tableau1[Année],Param_Annee,Tableau1[Mois],H$10) -> 339.15 | I15: =SUMIFS(Tableau1[Ventes (€)],Tableau1[Description du produit],$A15,Tableau1[Région],Param_Region,Tableau1[Année],Param_Annee,Tableau1[Mois],I$10) -> 498.75 | J15: =SUMIFS(Tableau1[Ventes (€)],Tableau1[Description du produit],$A15,Tableau1[Région],Param_Region,Tableau1[Année],Param_Annee,Tableau1[Mois],J$10) -> 558.6 | K15: =SUMIFS(Tableau1[Ventes (€)],Tableau1[Description du produit],$A15,Tableau1[Région],Param_Region,Tableau1[Année],Param_Annee,Tableau1[Mois],K$10) -> 817.95 | L15: =SUMIFS(Tableau1[Ventes (€)],Tableau1[Description du produit],$A15,Tableau1[Région],Param_Region,Tableau1[Année],Param_Annee,Tableau1[Mois],L$10) -> 997.5 | M15: =SUMIFS(Tableau1[Ventes (€)],Tableau1[Description du produit],$A15,Tableau1[Région],Param_Region,Tableau1[Année],Param_Annee,Tableau1[Mois],M$10) -> 1017.45
A16: Product B | B16: =SUMIFS(Tableau1[Ventes (€)],Tableau1[Description du produit],$A16,Tableau1[Région],Param_Region,Tableau1[Année],Param_Annee,Tableau1[Mois],B$10) -> 0 | C16: =SUMIFS(Tableau1[Ventes (€)],Tableau1[Description du produit],$A16,Tableau1[Région],Param_Region,Tableau1[Année],Param_Annee,Tableau1[Mois],C$10) -> 5067.3 | D16: =SUMIFS(Tableau1[Ventes (€)],Tableau1[Description du produit],$A16,Tableau1[Région],Param_Region,Tableau1[Année],Param_Annee,Tableau1[Mois],D$10) -> 3970.05 | E16: =SUMIFS(Tableau1[Ventes (€)],Tableau1[Description du produit],$A16,Tableau1[Région],Param_Region,Tableau1[Année],Param_Annee,Tableau1[Mois],E$10) -> 4289.25 | F16: =SUMIFS(Tableau1[Ventes (€)],Tableau1[Description du produit],$A16,Tableau1[Région],Param_Region,Tableau1[Année],Param_Annee,Tableau1[Mois],F$10) -> 5306.7 | G16: =SUMIFS(Tableau1[Ventes (€)],Tableau1[Description du produit],$A16,Tableau1[Région],Param_Region,Tableau1[Année],Param_Annee,Tableau1[Mois],G$10) -> 10234.35 | H16: =SUMIFS(Tableau1[Ventes (€)],Tableau1[Description du produit],$A16,Tableau1[Région],Param_Region,Tableau1[Année],Param_Annee,Tableau1[Mois],H$10) -> 10693.2 | I16: =SUMIFS(Tableau1[Ventes (€)],Tableau1[Description du produit],$A16,Tableau1[Région],Param_Region,Tableau1[Année],Param_Annee,Tableau1[Mois],I$10) -> 13685.7 | J16: =SUMIFS(Tableau1[Ventes (€)],Tableau1[Description du produit],$A16,Tableau1[Région],Param_Region,Tableau1[Année],Param_Annee,Tableau1[Mois],J$10) -> 17935.05 | K16: =SUMIFS(Tableau1[Ventes (€)],Tableau1[Description du produit],$A16,Tableau1[Région],Param_Region,Tableau1[Année],Param_Annee,Tableau1[Mois],K$10) -> 25156.95 | L16: =SUMIFS(Tableau1[Ventes (€)],Tableau1[Description du produit],$A16,Tableau1[Région],Param_Region,Tableau1[Année],Param_Annee,Tableau1[Mois],L$10) -> 21107.1 | M16: =SUMIFS(Tableau1[Ventes (€)],Tableau1[Description du produit],$A16,Tableau1[Région],Param_Region,Tableau1[Année],Param_Annee,Tableau1[Mois],M$10) -> 17316.6
A17: Product C | B17: =SUMIFS(Tableau1[Ventes (€)],Tableau1[Description du produit],$A17,Tableau1[Région],Param_Region,Tableau1[Année],Param_Annee,Tableau1[Mois],B$10) -> 1213.9 | C17: =SUMIFS(Tableau1[Ventes (€)],Tableau1[Description du produit],$A17,Tableau1[Région],Param_Region,Tableau1[Année],Param_Annee,Tableau1[Mois],C$10) -> 1094.5 | D17: =SUMIFS(Tableau1[Ventes (€)],Tableau1[Description du produit],$A17,Tableau1[Région],Param_Region,Tableau1[Année],Param_Annee,Tableau1[Mois],D$10) -> 875.6 | E17: =SUMIFS(Tableau1[Ventes (€)],Tableau1[Description du produit],$A17,Tableau1[Région],Param_Region,Tableau1[Année],Param_Annee,Tableau1[Mois],E$10) -> 815.9 | F17: =SUMIFS(Tableau1[Ventes (€)],Tableau1[Description du produit],$A17,Tableau1[Région],Param_Region,Tableau1[Année],Param_Annee,Tableau1[Mois],F$10) -> 985.05 | G17: =SUMIFS(Tableau1[Ventes (€)],Tableau1[Description du produit],$A17,Tableau1[Région],Param_Region,Tableau1[Année],Param_Annee,Tableau1[Mois],G$10) -> 1681.55 | H17: =SUMIFS(Tableau1[Ventes (€)],Tableau1[Description du produit],$A17,Tableau1[Région],Param_Region,Tableau1[Année],Param_Annee,Tableau1[Mois],H$10) -> 1950.2 | I17: =SUMIFS(Tableau1[Ventes (€)],Tableau1[Description du produit],$A17,Tableau1[Région],Param_Region,Tableau1[Année],Param_Annee,Tableau1[Mois],I$10) -> 2039.75 | J17: =SUMIFS(Tableau1[Ventes (€)],Tableau1[Description du produit],$A17,Tableau1[Région],Param_Region,Tableau1[Année],Param_Annee,Tableau1[Mois],J$10) -> 2338.25 | K17: =SUMIFS(Tableau1[Ventes (€)],Tableau1[Description du produit],$A17,Tableau1[Région],Param_Region,Tableau1[Année],Param_Annee,Tableau1[Mois],K$10) -> 3422.8 | L17: =SUMIFS(Tableau1[Ventes (€)],Tableau1[Description du produit],$A17,Tableau1[Région],Param_Region,Tableau1[Année],Param_Annee,Tableau1[Mois],L$10) -> 3363.1 | M17: =SUMIFS(Tableau1[Ventes (€)],Tableau1[Description du produit],$A17,Tableau1[Région],Param_Region,Tableau1[Année],Param_Annee,Tableau1[Mois],M$10) -> 2686.5

Sheet Listes
A1: Description du produit | C1: Région
A2: Product A | C2: Région Nord
A3: Product B | C3: Région Centre
A4: Product C | C4: Région Est
C5: Région Ouest

Sheet Reporting
A18: ="Ces graphiques représentent l'évolution des ventes pour l'année " & Param_Annee & ", pour la " & Param_Region & " et pour le " & Param_Produits& "." -> Ces graphiques représentent l'évolution des ventes pour l'année 2014, pour la Région Ouest et pour le Product A.
